Cogmind - Beta 16.1 @@@ ROGUE MODE // 2026.03.04 @ 16:53:54 Player: Endlessblaze Result: Destroyed by P-80 Master with Gamma Rifle Performance ------------- Evolutions (7) 3500 Regions Visited (12) 2400 Robots Destroyed (63) 315 Value Destroyed (3000) 3000 Prototype IDs (5) 100 Alien Tech Used (0) 0 Bonus (1345) 1345 TOTAL SCORE: 10660 Bonus ------- High Alert Combat Kills 186 Follower Combat Kills 159 Entered DSFs 1000 Cogmind --------- Core Integrity 0/1300 Matter 43/300 Energy 68/100 System Corruption 8% Temperature Cool (0) Movement Core (50) Location -3/Research Parts ------- > --- POWER (3) -------- (None) > --- PROPULSION (5) --- (None) > --- UTILITY (9) ------ Improved Target Analyzer > --- WEAPON (4) ------- (None) > --- INVENTORY (5) ---- Advanced ECM Suite Advanced Thermal Shield Tesla Rifle Peak State ------------ > --- POWER ------------ Light Angular Momentum Engine Neutrino Core > --- PROPULSION ------- Carbon-fiber Leg Carbon-fiber Leg Carbon-fiber Leg Field Propulsion Drive > --- UTILITY ---------- Improved Coolant Injector Advanced Visual Processing Unit Core Analyzer Thermal Shield Advanced Shield Generator System Shield > --- WEAPON ----------- Shock Rifle Phase Cannon Phase Cannon Power Maul > --- INVENTORY -------- Xenon Bombardment Thruster Improved Heat Sink Railgun Gauss Cannon Katana [Rating: 72] Favorites ----------- Power Nuclear Core Engine Improved Deuterium Engine Power Core Nuclear Core Propulsion Carbon-fiber Leg Treads Armored Treads Leg Carbon-fiber Leg Wheel Wheel Hover Unit Backup Propulsion III Flight Unit Flight Unit Utility Advanced Visual Processing Unit Device Improved Coolant Injector Storage Advanced Energy Well Processor Advanced Visual Processing Unit Hackware System Shield Protection Improved Light Armor Plating Weapon Phase Cannon Energy Gun Heavy EM Shotgun Energy Cannon Phase Cannon Ballistic Gun Light Assault Rifle Ballistic Cannon Gauss Cannon Launcher Mini Grenade Launcher Impact Weapon Power Maul Slashing Weapon Katana Build | -11 -10 -10 -9 -9 -8 -7 -7 -6 -5 -4 -4 -3 ------- Run | Yrd Mat Min Mat Min Mat Fac DSF Fac Fac Fac DSF Res Slots Evolved 14 | . . . 2 . 2 2 . 2 2 2 . 2 Power 2 | . . . . . . . . 1 . 1 . . Propulsion 3 | . . . . . 1 1 . . . . . 1 Utility 7 | . . . 1 . 1 1 . 1 1 1 . 1 Weapon 2 | . . . 1 . . . . . 1 . . . Parts Attached 103 | 5 . . 10 4 12 . 7 20 23 . 7 15 Power 15 | 1 . . 1 1 3 . . 5 2 . 2 . Engine 8 | 1 . . 1 1 1 . . 3 1 . . . Core 7 | . . . . . 2 . . 2 1 . 2 . Reactor . | . . . . . . . . . . . . . Propulsion 29 | 2 . . 6 2 . . 4 4 9 . . 2 Treads 5 | 2 . . . . . . . 2 . . . 1 Leg 9 | . . . 2 . . . 2 2 3 . . . Wheel 3 | . . . . . . . . . 3 . . . Hover 2 | . . . . . . . . . 1 . . 1 Flight 10 | . . . 4 2 . . 2 . 2 . . . Utility 32 | . . . 1 . 6 . . 6 9 . 3 7 Device 17 | . . . . . 3 . . 2 6 . 2 4 Storage 2 | . . . 1 . . . . . . . . 1 Processor 5 | . . . . . 1 . . 2 1 . . 1 Hackware 1 | . . . . . . . . 1 . . . . Protection 7 | . . . . . 2 . . 1 2 . 1 1 Artifact . | . . . . . . . . . . . . . Weapon 27 | 2 . . 2 1 3 . 3 5 3 . 2 6 Energy Gun 12 | . . . 2 . 2 . 2 2 1 . . 3 Energy Cannon 2 | . . . . . . . . 2 . . . . Ballistic Gun 4 | 2 . . . . . . . . 1 . . 1 Ballistic Cannon 1 | . . . . . . . . . 1 . . . Launcher 5 | . . . . 1 . . . . . . 2 2 Special Weapon . | . . . . . . . . . . . . . Impact Weapon 1 | . . . . . . . 1 . . . . . Slashing Weapon 2 | . . . . . 1 . . 1 . . . . Piercing Weapon . | . . . . . . . . . . . . . Special Melee Weapon . | . . . . . . . . . . . . . Unidentified Prototypes 5 | . . . 1 . 1 . . . 1 . . 2 Corrupted Parts 1 | . . . 1 . . . . . . . . . System Corruption 2 | . . . 2 . . . . . . . . . Parts Lost 81 | . . . 8 . 3 . 14 4 27 . 8 17 Power 12 | . . . 1 . 1 . 1 1 4 . 1 3 Propulsion 22 | . . . 3 . 1 . 4 1 10 . 1 2 Utility 24 | . . . . . 1 . 4 1 6 . 4 8 Weapon 23 | . . . 4 . . . 5 1 7 . 2 4 Highest Loss Streak 14 | . . . 3 . 3 . 14 4 13 . 4 7 To Critical Strikes . | . . . . . . . . . . . . . Average Backups 3 | . . . 1 2 3 5 2 4 3 . 2 3 Power . | . . . . 1 . . . . . . . . Propulsion . | . . . . 1 . . . . . . . . Utility . | . . . . . 1 2 . . 1 . . 1 Weapon 1 | . . . . . 2 3 2 3 1 . 1 2 Tool/Special . | . . . . . . . . . . . . . Unused Backups 4 | . . . . . . . . 2 . . . 2 Power . | . . . . . . . . . . . . . Propulsion . | . . . . . . . . . . . . . Utility 1 | . . . . . . . . . . . . 1 Weapon 3 | . . . . . . . . 2 . . . 1 Tool/Special . | . . . . . . . . . . . . . Average Slot Usage (%) 64 | . 71 71 43 38 71 69 79 77 84 42 42 24 Engine 4 | . 14 14 8 9 1 7 5 5 . . . . Core 3 | . . . . . 7 . . 2 7 . 3 1 Treads 5 | . 28 28 4 . . . . 10 3 . . . Leg 5 | . . . 4 . . . 13 4 12 . . . Flight 5 | . . . 8 19 26 15 9 3 1 . . . Device 7 | . . . . . 9 7 11 7 12 10 11 6 Processor 10 | . . . . . 4 7 7 17 15 15 15 8 Hackware 1 | . . . . . . . . 1 3 . . . Protection 3 | . . . . . 3 7 9 4 4 10 9 1 Energy Gun 3 | . . . 5 . 9 15 9 3 3 . . . Energy Cannon 2 | . . . . . . . . 1 8 . . . Ballistic Gun 3 | . 28 28 8 . . . . . . . . . Impact Weapon 2 | . . . . . . . 1 6 3 . . . Slashing Weapon 2 | . . . . . 5 7 6 5 . . . . Peak Build Rating 72 | 5 5 5 7 5 30 26 36 56 72 34 46 46 Average Rating 32 | 4 5 5 5 4 19 26 29 42 58 34 35 26 On Entrance 18 | . 5 5 5 3 5 26 26 10 56 34 34 28 Avg Prop Armor Cover (%) 10 | . . . . 9 6 . 3 11 11 . . 33 Naked Turns 1 | . . . 1 . . . . . . . . . Heaviest Build 90 | 8 8 8 90 4 21 21 26 40 52 6 18 34 Greatest Support 60 | 40 40 40 40 8 24 19 45 40 60 11 11 35 Greatest Overweight (x) 11 | . . . 8 . 1 1 1 2 8 . 5 11 Average Overweight (x) . | . . . . . . 1 . . . . 1 . Largest Inventory Capacity 25 | 5 5 5 25 5 5 5 5 5 5 5 5 5 Average Capacity 5 | 5 5 5 9 5 5 5 5 5 5 5 5 5 Most Carried 5 | . . . 3 3 5 5 5 5 5 . 3 5 Average Carried 3 | . . . 1 2 3 5 2 4 3 . 2 3 Final Capacity 5 | 5 5 5 5 5 5 5 5 5 5 5 5 5 Final Carried 5 | . . . 3 2 5 5 3 5 . . 3 3 Class Distribution -------------------- 72% | Mutant 10% | Scavenger-Mutant 7% | Gunner 4% | Tank 3% | Scavenger-Gunner Dominant Class ---------------- Mutant | -10/Materials Mutant | -10/Mines Mutant | -9/Materials Mutant | -9/Mines Scavenger-Mutant | -8/Materials Mutant | -7/Factory Mutant | -7/DSF Mutant | -6/Factory Mutant | -5/Factory Mutant | -4/Factory Mutant | -4/DSF Mutant | -3/Research Resources | -11 -10 -10 -9 -9 -8 -7 -7 -6 -5 -4 -4 -3 ----------- Run | Yrd Mat Min Mat Min Mat Fac DSF Fac Fac Fac DSF Res Matter Collected 1335 | 205 141 . 166 44 211 . 56 171 204 . 69 68 Remotely . | . . . . . . . . . . . . . Salvage Created 3110 | . 195 . 249 . 460 . 133 374 1631 . . 68 Parts 144 | . 13 . 17 . 35 . 8 17 51 . . 3 Haulers Intercepted . | . . . . . . . . . . . . . Recyclers Shooed 4 | . . . . . . . . . 3 . . 1 Parts Field Recycled . | . . . . . . . . . . . . . Retrieved Matter . | . . . . . . . . . . . . . Parts Self-Destructed . | . . . . . . . . . . . . . Prevented . | . . . . . . . . . . . . . Parts Restored . | . . . . . . . . . . . . . Kills | -11 -10 -10 -9 -9 -8 -7 -7 -6 -5 -4 -4 -3 ------- Run | Yrd Mat Min Mat Min Mat Fac DSF Fac Fac Fac DSF Res Combat Hostiles Destroyed 54 | . 5 . 6 . 11 . 2 5 24 . . 1 Melee 7 | . . . . . . . 1 5 1 . . . Guns 27 | . 5 . 6 . 6 . 1 . 8 . . 1 Cannons 11 | . . . . . . . . . 11 . . . AOE 5 | . . . . . 5 . . . . . . . Classes Destroyed 13 | . 1 . 3 . 3 . 1 4 1 . . . Worker 1 | . . . . . . . . 1 . . . . Builder 2 | . . . . . 1 . . . 1 . . . Recycler 3 | . . . . . . . . 1 2 . . . Operator 1 | . . . 1 . . . . . . . . . Watcher 2 | . . . . . 2 . . . . . . . Swarmer 5 | . . . 2 . 3 . . . . . . . Grunt 30 | . 5 . 3 . 2 . . 3 17 . . . Brawler 1 | . . . . . . . . . 1 . . . Duelist 1 | . . . . . 1 . . . . . . . Sentry 7 | . . . 1 . 5 . . . 1 . . . Specialist 2 | . . . . . . . 2 . . . . . Hunter 3 | . . . . . . . . 1 2 . . . Programmer 5 | . . . . . . . . 1 3 . . 1 Best Kill Streak 9 | . 5 . 3 . 9 . 2 5 9 . . 1 Combat Bots Only 8 | . 5 . 3 . 8 . 2 4 7 . . 1 Max Kills in Single Turn 3 | . 1 . 1 . 3 . 1 1 1 . . 1 Gunslinging 1 | . . . . . 1 . . . . . . . Exploded 3 | . . . . . 3 . . . . . . . Melee 1 | . . . . . . . 1 1 1 . . . Uniques/NPCs Destroyed . | . . . . . . . . . . . . . Combat | -11 -10 -10 -9 -9 -8 -7 -7 -6 -5 -4 -4 -3 -------- Run | Yrd Mat Min Mat Min Mat Fac DSF Fac Fac Fac DSF Res Hostile Shots Fired 1015 | . 34 1 152 3 25 . 152 87 262 . 78 221 Missed 377 | . 10 1 63 2 11 . 63 24 71 . 26 106 Hits 638 | . 24 . 89 1 14 . 89 63 191 . 52 115 Melee 5 | . . . . . . . 1 . . . . 4 Projectile 633 | . 24 . 89 1 14 . 88 63 191 . 52 111 AOE 1 | . . . . . . . . . 1 . . . Critical Strikes 30 | . . . . . . . 2 3 10 . 3 12 Actively Blocked 2 | . . . . . . . . . 1 . 1 . Part Disruptions 2 | . . . . . . . . . 1 . . 1 Damage Taken 10917 | . 258 . 919 6 289 . 1176 947 3250 . 1449 2623 Core 3594 | . 11 . 384 6 44 . 220 161 896 . 553 1319 Absorbed by Shields 495 | . . . . . . . . . 474 . . 21 Redirected to Shielding 332 | . . . . . 9 . 101 . 91 . 131 . Ignored by Resistances 189 | . . . . . . . . 80 109 . . . Regen/Repaired (Parts) 167 | . . . . . 61 . . . 106 . . . Core Remaining (%) 62 | 100 . 95 . 2 92 . 68 81 10 . 51 . Volleys Fired 147 | . 24 . 25 . 20 . 4 5 55 . . 14 Largest 3 | . 2 . 3 . 2 . 2 1 3 . . 2 Hottest 220 | . 40 . 85 . 100 . 100 80 220 . . 100 Shots Fired 307 | . 48 . 51 . 31 . 5 5 151 . . 16 Gun 196 | . 48 . 51 . 29 . 5 5 43 . . 15 Cannon 108 | . . . . . . . . . 108 . . . Launcher 3 | . . . . . 2 . . . . . . 1 Special . | . . . . . . . . . . . . . Kinetic 92 | . 48 . 30 . . . . . 13 . . 1 Thermal 119 | . . . . . . . . 5 101 . . 13 Explosive 2 | . . . . . 2 . . . . . . . Electromagnetic 94 | . . . 21 . 29 . 5 . 37 . . 2 Robot Hit Streak 20 | . 9 . 9 . 7 . 13 20 11 . . 5 Robot Miss Streak 6 | . 2 . 3 . 6 . . 1 2 . . 2 Penetration Max 1 | . . . . . . . . . 1 . . . Secondary Targets 2 | . 1 . . . 1 . . . . . . . Max Gunslinging Chain 1 | . 1 . . . 1 . . . . . . . Shots Hit Robots 237 | . 35 . 33 . 22 . 9 20 105 . . 13 Core Hits 111 | . 10 . 11 . 21 . 4 9 49 . 1 6 Critical Kills 4 | . 1 . . . . . . . 3 . . . Critical Parts Destroyed 3 | . . . . . . . . 1 2 . . . Critical Strikes 12 | . 1 . . . . . . 2 9 . . . Meltdown 3 | . . . . . . . . . 3 . . . Destroy 1 | . 1 . . . . . . . . . . . Blast 3 | . . . . . . . . . 3 . . . Corrupt 1 | . . . . . . . . . 1 . . . Smash 3 | . . . . . . . . 1 2 . . . Sever 1 | . . . . . . . . 1 . . . . Melee Attacks 76 | . . . . . . . 6 42 28 . . . Impact 51 | . . . . . . . . 32 19 . . . Slashing 25 | . . . . . . . 6 10 9 . . . Piercing . | . . . . . . . . . . . . . Sneak Attacks 4 | . . . . . . . . 2 2 . . . Combat Hostiles . | . . . . . . . . . . . . . Follow-up Attacks 5 | . . . . . . . . 5 . . . . Damage Inflicted 7046 | . 351 . 375 . 1081 . 290 893 3697 . 1 358 Guns 2093 | . 351 . 375 . 332 . 115 150 475 . . 295 Cannons 2367 | . . . . . . . . . 2367 . . . Explosions 1208 | . . . . . 749 . 44 . 406 . . 9 Melee 1306 | . . . . . . . 131 743 432 . . . Ramming 72 | . . . . . . . . . 17 . 1 54 Kinetic 803 | . 351 . 184 . . . . . 268 . . . Thermal 3550 | . . . . . 488 . 44 150 2578 . . 290 Explosive 261 | . . . . . 261 . . . . . . . Electromagnetic 1054 | . . . 191 . 332 . 115 . 402 . . 14 Impact 807 | . . . . . . . . 594 213 . . . Slashing 499 | . . . . . . . 131 149 219 . . . Piercing . | . . . . . . . . . . . . . Highest Corruption 9 | . . . 2 2 . . . . 9 . . 8 Average Corruption 5 | . . . 2 2 . . . . 7 . . 4 Corruption Purged . | . . . . . . . . . . . . . Corruption Blocked . | . . . . . . . . . . . . . Effects 22 | . . . 1 1 . . . . 17 . . 3 Message Errors 7 | . . . 1 . . . . . 5 . . 1 Matter Fused 2 | . . . . . . . . . 2 . . . Heat Flow Errors 4 | . . . . . . . . . 4 . . . Energy Discharges 2 | . . . . 1 . . . . 1 . . . Parts Rejected 2 | . . . . . . . . . 2 . . . Data Loss (minor) 2 | . . . . . . . . . 1 . . 1 Misfires 1 | . . . . . . . . . 1 . . . Alerts 2 | . . . . . . . . . 1 . . 1 Overload Shots . | . . . . . . . . . . . . . Overflow Damage 598 | . . . . . 203 . . 234 161 . . . Projectiles 18 | . . . . . . . . . 18 . . . Explosions 203 | . . . . . 203 . . . . . . . Melee 377 | . . . . . . . . 234 143 . . . Knockbacks 7 | . . . . . . . . 2 3 . . 2 Impact 5 | . . . . . . . . 2 1 . . 2 Kinetic 2 | . . . . . . . . . 2 . . . Secondary . | . . . . . . . . . . . . . Self-Inflicted Damage 216 | . . . . . 80 . 48 . 28 . . 60 Shots 7 | . . . . . 1 . 1 . 1 . . 4 Rammed 13 | . . . . . . . . . 1 . 1 11 Targets Rammed 13 | . . . . . . . . . 1 . 1 11 Kicked . | . . . . . . . . . . . . . Crushed . | . . . . . . . . . . . . . Highest Temperature 592 | . 12 . 211 . 153 . . 76 592 . . 70 Average Temperature 107 | . 6 . 64 . 54 . . 31 152 . . 33 Received Heat Transfer 2257 | . 144 . 324 . 69 . 165 216 880 . 171 288 Effects 13 | . . . . . . . . . 13 . . . Shutdowns 3 | . . . . . . . . . 3 . . . Energy Bleed 3 | . . . . . . . . . 3 . . . Interference 1 | . . . . . . . . . 1 . . . Matter Decay 1 | . . . . . . . . . 1 . . . Damage (minor) 5 | . . . . . . . . . 5 . . . Siege Activations . | . . . . . . . . . . . . . Martial Activations . | . . . . . . . . . . . . . Shielding Activations . | . . . . . . . . . . . . . Robots Disrupted . | . . . . . . . . . . . . . Combat Hostiles . | . . . . . . . . . . . . . Robots Corrupted 3 | . . . . . . . . 1 2 . . . Combat Hostiles 1 | . . . . . . . . . 1 . . . Parts Fried 12 | . . . 1 . . . . 3 8 . . . Impact Corruptions 11 | . . . . . . . . 6 5 . . . Robots Melted 3 | . . . . . . . . . 3 . . . Combat Hostiles 3 | . . . . . . . . . 3 . . . Parts Melted 13 | . . . . . . . . 1 10 . . 2 Heat Transferred 4184 | . . . . . 450 . 50 300 2977 . . 407 Parts Sabotaged . | . . . . . . . . . . . . . Parts Stolen . | . . . . . . . . . . . . . Parts Stripped . | . . . . . . . . . . . . . Power Chain Reactions 8 | . . . . . 4 . 1 . 3 . . . Alert | -11 -10 -10 -9 -9 -8 -7 -7 -6 -5 -4 -4 -3 ------- Run | Yrd Mat Min Mat Min Mat Fac DSF Fac Fac Fac DSF Res Maximum Alert Level 2 | . . . . . 1 . . 1 2 . . . Low Security (%) 76 | 100 100 100 100 100 90 100 100 78 28 100 100 100 Level 1 12 | . . . . . 9 . . 21 28 . . . Level 2 10 | . . . . . . . . . 43 . . . Level 3 . | . . . . . . . . . . . . . Level 4 . | . . . . . . . . . . . . . Level 5 . | . . . . . . . . . . . . . High Security . | . . . . . . . . . . . . . Max Security . | . . . . . . . . . . . . . Peak Influence 499 | . 105 36 165 145 353 153 133 329 499 178 124 72 Initial 178 | . . 36 . 64 29 153 93 10 154 178 124 33 Average 131 | . 24 14 88 109 93 147 93 78 328 178 92 18 Influence Increases 2984 | . 135 . 395 81 589 . 68 557 903 . 15 241 Destroy 0b10 Robot/C 1220 | . 100 . 120 60 300 . 40 100 480 . . 20 Destroy 0b10 Robot/NC 45 | . . . 5 . 15 . . 10 15 . . . Destroy Leader 314 | . 20 . 30 10 94 . 10 40 100 . . 10 Allied During Kill 42 | . . . . 11 31 . . . . . . . Successful Hack 54 | . . . . . 31 . . 7 . . . 16 Disable Machine 210 | . . . 30 . 60 . . . 120 . . . Anti-Garrison Action 300 | . . . . . . . . 300 . . . . Destroy Structure 199 | . . . . . 58 . 3 10 128 . . . Partial Spotted 90 | . . . 30 . . . . 45 . . . 15 Lose Combat Pursuer 510 | . 15 . 180 . . . 15 45 60 . 15 180 Influence Decreases 2961 | . 40 95 230 171 326 205 180 261 855 187 134 277 Entered New Map 872 | . . 59 . 101 46 185 40 11 163 187 54 26 Time Decay 1273 | . 40 36 150 70 190 20 . 210 422 . . 135 Lost Part 756 | . . . 80 . 30 . 140 40 270 . 80 116 Lost Ally 60 | . . . . . 60 . . . . . . . Squads Dispatched 29 | . 2 . 3 . 1 1 1 9 8 . . 4 Investigation 8 | . 2 . 1 . . 1 . . 3 . . 1 Extermination 6 | . . . . . . . . 2 2 . . 2 Reinforcement 8 | . . . 2 . . . 1 1 3 . . 1 Assault 4 | . . . . . . . . 4 . . . . Garrison 3 | . . . . . 1 . . 2 . . . . Intercept . | . . . . . . . . . . . . . Searches Triggered . | . . . . . . . . . . . . . Construction Impeded 1 | . . . . . . . . . 1 . . . Haulers Reinforced . | . . . . . . . . . . . . . Active Scanning Responses . | . . . . . . . . . . . . . Cargo Convoy Interrupts . | . . . . . . . . . . . . . Stealth | -11 -10 -10 -9 -9 -8 -7 -7 -6 -5 -4 -4 -3 --------- Run | Yrd Mat Min Mat Min Mat Fac DSF Fac Fac Fac DSF Res Distress Signals 4 | . . . 1 . 1 . . . . . . 2 Communications Jammed . | . . . . . . . . . . . . . Distress Signals . | . . . . . . . . . . . . . Times Spotted 159 | . 5 1 28 3 19 . 11 12 42 . 6 32 Peak Tracking Total 12 | . 5 2 12 3 8 . 7 4 7 . 5 7 Tactical Retreats 19 | . 1 . 6 . . . 1 1 2 . 1 7 ECM-based Alert Blocks 5 | . . . . . . . . . . . . 5 Traps | -11 -10 -10 -9 -9 -8 -7 -7 -6 -5 -4 -4 -3 ------- Run | Yrd Mat Min Mat Min Mat Fac DSF Fac Fac Fac DSF Res Traps Triggered 5 | . 1 . . . . . . 2 1 . 1 . Indirectly . | . . . . . . . . . . . . . Trap Hack Attempts . | . . . . . . . . . . . . . Triggered . | . . . . . . . . . . . . . Disarmed . | . . . . . . . . . . . . . Reprogrammed . | . . . . . . . . . . . . . Reused . | . . . . . . . . . . . . . Traps Extracted . | . . . . . . . . . . . . . Installed . | . . . . . . . . . . . . . Triggered . | . . . . . . . . . . . . . Machines | -11 -10 -10 -9 -9 -8 -7 -7 -6 -5 -4 -4 -3 ---------- Run | Yrd Mat Min Mat Min Mat Fac DSF Fac Fac Fac DSF Res Machines Disabled 16 | . . . 2 . 4 . . 2 8 . . . Max in Single Turn 4 | . . . 1 . 1 . . 1 4 . . . Garrison Access 2 | . . . . . . . . 2 . . . . Machines Repaired . | . . . . . . . . . . . . . Machines Dismantled . | . . . . . . . . . . . . . Machines Sabotaged . | . . . . . . . . . . . . . Overloaded Fab Kills . | . . . . . . . . . . . . . Hacking | -11 -10 -10 -9 -9 -8 -7 -7 -6 -5 -4 -4 -3 --------- Run | Yrd Mat Min Mat Min Mat Fac DSF Fac Fac Fac DSF Res Machines Accessed 30 | . 1 . 2 . 9 1 . 6 6 1 . 4 Terminals 12 | . 1 . 1 . 5 1 . 2 1 1 . . Fabricators 1 | . . . . . . . . . . . . 1 Repair Stations 5 | . . . . . 2 . . . 1 . . 2 Recycling Units 5 | . . . . . . . . 2 3 . . . Scanalyzers 4 | . . . 1 . 1 . . . 1 . . 1 Garrison Access 3 | . . . . . 1 . . 2 . . . . Total Hacks 88 | . 4 . 6 . 30 3 . 15 21 4 . 5 Successful 48 | . 1 . 4 . 19 1 . 9 12 1 . 1 Failed 39 | . 3 . 2 . 10 2 . 6 9 3 . 4 Catastrophic 6 | . 1 . . . 1 . . 1 1 . . 2 Database Lockouts 1 | . . . . . 1 . . . . . . . Manual 23 | . 4 . 3 . 10 . . 4 2 . . . Terminals 34 | . 4 . 3 . 11 3 . 8 1 4 . . Fabricators 1 | . . . . . . . . . . . . 1 Repair Stations 9 | . . . . . 4 . . . 2 . . 3 Recycling Units 14 | . . . . . . . . 3 11 . . . Scanalyzers 22 | . . . 3 . 11 . . . 7 . . 1 Garrison Access 8 | . . . . . 4 . . 4 . . . . Terminal Hacks 7 | . . . 1 . . 1 . 4 . 1 . . Record 2 | . . . . . . . . 2 . . . . Robot Schematic 1 | . . . . . . . . 1 . . . . Open DSF 3 | . . . . . . 1 . 1 . 1 . . Branch Access Points 1 | . . . 1 . . . . . . . . . Fabricator Hacks . | . . . . . . . . . . . . . Repair Station Hacks 5 | . . . . . 4 . . . . . . 1 Scan Component 2 | . . . . . 2 . . . . . . . Repair 2 | . . . . . 2 . . . . . . . Refit 1 | . . . . . . . . . . . . 1 Recycling Unit Hacks 6 | . . . . . . . . 2 4 . . . Report Inventory 3 | . . . . . . . . 2 1 . . . Retrieve Matter 1 | . . . . . . . . . 1 . . . Retrieve Components 2 | . . . . . . . . . 2 . . . Scanalyzer 20 | . . . 3 . 10 . . . 7 . . . Insert Component 7 | . . . 1 . 3 . . . 3 . . . Analyze 8 | . . . 1 . 4 . . . 3 . . . Retrieve Study 5 | . . . 1 . 3 . . . 1 . . . Garrison Access Hacks . | . . . . . . . . . . . . . Unauthorized Hacks 10 | . 1 . . . 5 . . 3 1 . . . Terminals 9 | . 1 . . . 5 . . 3 . . . . Track 3 | . . . . . 2 . . 1 . . . . Assimilate 1 | . . . . . . . . 1 . . . . Botnet 5 | . 1 . . . 3 . . 1 . . . . Fabricators . | . . . . . . . . . . . . . Repair Stations 1 | . . . . . . . . . 1 . . . Patch 1 | . . . . . . . . . 1 . . . Recycling Units . | . . . . . . . . . . . . . Scanalyzers . | . . . . . . . . . . . . . Garrison Access . | . . . . . . . . . . . . . Data Cores Recovered . | . . . . . . . . . . . . . Used . | . . . . . . . . . . . . . Hacking Detections 26 | . 1 . 2 . 9 1 . 4 5 1 . 3 Full Trace Events 4 | . 1 . 1 . . 1 . . . . . 1 Feedback Events . | . . . . . . . . . . . . . Feedback Blocked . | . . . . . . . . . . . . . Robot Schematics Acquired 1 | . . . . . . . . 1 . . . . Robots Built . | . . . . . . . . . . . . . Authchips . | . . . . . . . . . . . . . Time . | . . . . . . . . . . . . . Total Robot Build Rating . | . . . . . . . . . . . . . Part Schematics Acquired 7 | . . . 1 . 3 . . . 3 . . . Parts Built . | . . . . . . . . . . . . . Authchips . | . . . . . . . . . . . . . Time . | . . . . . . . . . . . . . Total Part Build Rating . | . . . . . . . . . . . . . Part Studies Acquired 5 | . . . 1 . 3 . . . 1 . . . Parts Repaired 2 | . . . . . 2 . . . . . . . Time 86 | . . . . . 86 . . . . . . . Parts Recycled . | . . . . . . . . . . . . . Recycled Matter . | . . . . . . . . . . . . . Retrieved Matter . | . . . . . . . . . . . . . Retrieved Components 10 | . . . . . . . . . 10 . . . Parts Scanalyzed 7 | . . . 1 . 3 . . . 3 . . . Part Schematics Acquired 7 | . . . 1 . 3 . . . 3 . . . Parts Damaged . | . . . . . . . . . . . . . Bothacking | -11 -10 -10 -9 -9 -8 -7 -7 -6 -5 -4 -4 -3 ------------ Run | Yrd Mat Min Mat Min Mat Fac DSF Fac Fac Fac DSF Res Used RIF Installer . | . . . . . . . . . . . . . Robots Hacked . | . . . . . . . . . . . . . Non-combat . | . . . . . . . . . . . . . Combat . | . . . . . . . . . . . . . Robot Hacks Applied . | . . . . . . . . . . . . . Relay Couplers Released 2 | . . . . . . . . 2 . . . . Machine Destruction 2 | . . . . . . . . 2 . . . . Fabnet Peak Effective % . | . . . . . . . . . . . . . Robots Rewired . | . . . . . . . . . . . . . Allies Hacked . | . . . . . . . . . . . . . Hacks Repelled . | . . . . . . . . . . . . . Allies | -11 -10 -10 -9 -9 -8 -7 -7 -6 -5 -4 -4 -3 -------- Run | Yrd Mat Min Mat Min Mat Fac DSF Fac Fac Fac DSF Res Total Allies 3 | . . . . 3 . . . . . . . . Largest Group 3 | . . . . 3 3 . . . . . . . Highest-Rated Group 40 | . . . . 40 40 . . . . . . . Highest-Rated Ally 16 | . . . . 16 16 . . . . . . . Total Orders 4 | . . . . 4 . . . . . . . . ROAM 1 | . . . . 1 . . . . . . . . GUARD 2 | . . . . 2 . . . . . . . . AID 1 | . . . . 1 . . . . . . . . Ally Attacks 26 | . . . . 6 20 . . . . . . . Total Damage 249 | . . . . 39 210 . . . . . . . Kills 7 | . . . . 3 4 . . . . . . . Allies Corrupted . | . . . . . . . . . . . . . Allies Melted . | . . . . . . . . . . . . . Intel | -11 -10 -10 -9 -9 -8 -7 -7 -6 -5 -4 -4 -3 ------- Run | Yrd Mat Min Mat Min Mat Fac DSF Fac Fac Fac DSF Res Active Infowar (turns) 2155 | . . . . . . . . 705 989 11 99 351 Optics 1970 | . . . . . . . . 547 989 11 99 324 IFF 356 | . . . . . . . . 356 . . . . Machine Analysis 577 | . . . . . . . . . 260 11 99 207 ECM 27 | . . . . . . . . . . . . 27 Robot Analysis Total . | . . . . . . . . . . . . . Derelict Logs Recovered 2 | . . . . 2 . . . . . . . . Drone Launches . | . . . . . . . . . . . . . Drone Recoveries . | . . . . . . . . . . . . . Exploration | -11 -10 -10 -9 -9 -8 -7 -7 -6 -5 -4 -4 -3 ------------- Run | Yrd Mat Min Mat Min Mat Fac DSF Fac Fac Fac DSF Res Turns Passed 4124 | 87 202 116 347 143 392 41 210 859 1023 11 99 594 Spaces Moved 2852 | 55 85 72 293 138 464 36 145 522 459 17 65 501 Core 499 | 7 . . 4 . . . . . 36 . 39 413 Treads 604 | 48 85 72 27 . . . . 276 93 . . 3 Legs 356 | . . . 22 . . . 119 . 215 . . . Wheels . | . . . . . . . . . . . . . Hover 236 | . . . . . . . . . 108 17 26 85 Flight 1157 | . . . 240 138 464 36 26 246 7 . . . Fastest Speed 34 | 50 160 160 37 37 34 117 35 35 60 60 60 50 Average Speed 98 | 146 160 160 81 37 35 117 109 113 146 60 126 92 Slowest Speed 680 | 160 160 160 680 40 117 117 127 195 450 60 300 600 Overloaded Moves . | . . . . . . . . . . . . . Propulsion Burnouts . | . . . . . . . . . . . . . Robots Hopped 13 | . . . 9 1 3 . . . . . . . Potential Cave-ins . | . . . . . . . . . . . . . Cave-ins Triggered . | . . . . . . . . . . . . . Exploration Rate (%) 28 | 3 20 15 35 33 32 2 89 15 15 1 85 21 Regions Visited 12 Branch Regions 2 Pre-discovered Areas 1 | . . . . 1 . . . . . . . . Known Exits Taken 3 | . . . 1 . . 1 . . . 1 . . Unknown Exits Taken 7 | 1 1 1 . 1 1 . . 1 1 . . . Scrap Searched . | . . . . . . . . . . . . . Spaces Dug 22 | . . . . . . . . 14 8 . . . Terrain Destroyed 138 | . . . . . 58 . 3 14 63 . . . Melee 22 | . . . . . . . . 14 8 . . . Projectile 27 | . . . . . . . . . 27 . . . AOE 89 | . . . . . 58 . 3 . 28 . . . Terrain Rammed . | . . . . . . . . . . . . . Walls Destroyed . | . . . . . . . . . . . . . Machines Disabled . | . . . . . . . . . . . . . Actions | -11 -10 -10 -9 -9 -8 -7 -7 -6 -5 -4 -4 -3 --------- Run | Yrd Mat Min Mat Min Mat Fac DSF Fac Fac Fac DSF Res Total 3732 | 59 108 73 351 226 654 35 177 710 629 17 76 617 Wait 455 | . . 2 17 85 140 . 8 95 51 . . 57 Move 2815 | 54 84 71 274 135 457 35 144 521 458 17 64 501 Hop 13 | . . . 9 1 3 . . . . . . . Pick Up 22 | . . . 2 . 3 . . 5 3 . 3 6 Fast Attach 90 | 5 . . 7 3 14 . 7 20 19 . 7 8 Attach 36 | . . . 6 1 6 . 3 4 8 . . 8 Detach 22 | . . . 5 . 7 . 1 4 . . . 5 Swap 5 | . . . 2 . . . 1 1 1 . . . Drop 30 | . . . 4 1 4 . 1 8 5 . . 7 Fire 147 | . 24 . 25 . 20 . 4 5 55 . . 14 Melee 66 | . . . . . . . 6 32 28 . . . Ram 13 | . . . . . . . . . 1 . 1 11 Kick . | . . . . . . . . . . . . . Crush . | . . . . . . . . . . . . . Escape Stasis 15 | . . . . . . . . 15 . . . . Rewire 3 | . . . . . . . 2 . . . 1 . Trap . | . . . . . . . . . . . . . Miscellaneous . | . . . . . . . . . . . . . Route ------- -11/Scrapyard -10/Materials -10/Mines -9/Materials -9/Mines -8/Materials -7/Factory -7/DSF -6/Factory -5/Factory -4/Factory -4/DSF -3/Research History --------- Turn | Location | Event 7 | -11/Scrapyard | Discovered new exit (range 16) 88 | -11/Scrapyard | Entered Materials 194 | -10/Materials | Discovered new exit (range 12) 290 | -10/Materials | Entered Mines 317 | -10/Mines | Build established: Mutant 366 | -10/Mines | Discovered new exit (range 6) 387 | -10/Mines | Assembled infested the area 392 | -10/Mines | Assisted by a Guerilla fighting off Assembled 406 | -10/Mines | Entered Materials 406 | -9/Materials | Evolved 2 slots: Utility x1, Weapon x1 625 | -9/Materials | Lost 3 parts (1n2w) 690 | -9/Materials | Core integrity fell below 50% 710 | -9/Materials | Identified exit to Mines 717 | -9/Materials | Lost 3 parts (1p1n1w) 732 | -9/Materials | Core integrity fell below 20% 753 | -9/Materials | Entered Mines 755 | -9/Mines | Assisted by bots powering up and referring to "LRC-V3" 756 | -9/Mines | Learned Materials terminal intel 791 | -9/Mines | Met a Derelict bent on vengeance 808 | -9/Mines | Learned location of Storage (-7) 858 | -9/Mines | Discovered new exit (range 6) 896 | -9/Mines | Entered Materials 896 | -8/Materials | Accompanied by 3 allies 896 | -8/Materials | Evolved 2 slots: Propulsion x1, Utility x1 897 | -8/Materials | Loaded intel: 11 terminal locations 985 | -8/Materials | Repaired Flight Unit 1131 | -8/Materials | Repaired Hvy. EM Shotgun 1180 | -8/Materials | Central database locked down 1205 | -8/Materials | Discovered new exit (range 6) 1273 | -8/Materials | Garrison activated, responded to threat 1288 | -8/Materials | Entered Factory 1288 | -7/Factory | Evolved 2 slots: Propulsion x1, Utility x1 1289 | -7/Factory | Destroyed 8 combat bots 1308 | -7/Factory | Lost 3 parts (1p1n1u) 1329 | -7/Factory | Identified exit to DSF 1329 | -7/Factory | Entered DSF 1353 | -7/DSF | Additional patrols routed to DSF 1534 | -7/DSF | Discovered new exit (range 12) 1539 | -7/DSF | Entered Factory 1539 | -6/Factory | Evolved 2 slots: Power x1, Utility x1 1563 | -6/Factory | Lost 14 parts (1p4n4u5w) 1989 | -6/Factory | Garrison activated, responded to threat 2122 | -6/Factory | Lost 4 parts (1p1n1u1w) 2310 | -6/Factory | Discovered new exit (range 12) 2398 | -6/Factory | Entered another Factory area 2398 | -5/Factory | Evolved 2 slots: Utility x1, Weapon x1 2745 | -5/Factory | Destroyed 7 combat bots 2942 | -5/Factory | Lost 5 parts (2p1n2u) 3292 | -5/Factory | Core integrity fell below 50% 3295 | -5/Factory | Lost 13 parts (1p5n2u5w) 3338 | -5/Factory | Lost 3 parts (1p1u1w) 3352 | -5/Factory | Core integrity fell below 20% 3410 | -5/Factory | Discovered new exit (range 16) 3421 | -5/Factory | Entered another Factory area 3421 | -4/Factory | Evolved 2 slots: Power x1, Utility x1 3432 | -4/Factory | Identified exit to DSF 3432 | -4/Factory | Entered DSF 3453 | -4/DSF | Found Gamma Bomb Array 3458 | -4/DSF | Found Gamma Bomb Array 3462 | -4/DSF | Additional patrols routed to DSF 3462 | -4/DSF | Found Gamma Bomb Array 3464 | -4/DSF | Found Gamma Bomb Array 3487 | -4/DSF | Discovered new exit (range 14) 3491 | -4/DSF | Lost 4 parts (1n1u2w) 3531 | -4/DSF | Entered Research 3531 | -3/Research | Evolved 2 slots: Propulsion x1, Utility x1 3556 | -3/Research | Lost 4 parts (1p3u) 3783 | -3/Research | Lost 7 parts (2p4u1w) 3816 | -3/Research | Spotted B-86 Titan 3862 | -3/Research | Lost 3 parts (1p1u1w) 4012 | -3/Research | Core integrity fell below 50% 4086 | -3/Research | Core integrity fell below 20% 4125 | -3/Research | Destroyed by P-80 Master with Gamma Rifle Last Messages --------------- corruption cleaned. 04096_ Penetrated by Slug. 04098_ 75UL=KEVROO